Workbook

Sheet Classifica
A1: Cognome e nome | B1: Cat. | C1: spec. | D1: tempo | E1: arrotonda | F1: concatena | G1: Punteggio | H1: Punteggio con Macro
A2: Ancora Rocco | B2: MM40 | C2: 800 | D2: 00:02:11.100 | E2: =ROUND(D2,8) -> 00:02:11.100 | F2: =CONCATENATE(B2,E2) -> MM400,00151736 | G2: =VLOOKUP(F2,Tempi!D$2:E$5894,2,FALSE) -> 576 | H2: 576
A3: Antonini Francesco | B3: MM35 | C3: 800 | D3: 00:02:17.400 | E3: =ROUND(D3,8) -> 00:02:17.400 | F3: =CONCATENATE(B3,E3) -> MM350,00159028 | G3: =VLOOKUP(F3,Tempi!D$2:E$5894,2,FALSE) -> 344 | H3: 344
A4: Argese Giacomo | B4: MM35 | C4: 800 | D4: 00:02:42.200 | E4: 00:02:42.200 | F4: MM350,00187731 | G4: =VLOOKUP(F4,Tempi!D$2:E$5894,2,FALSE) ->  | H4: 57 | I4: il punteggio dovrebbe essere 57 [riga 597 del foglio "Tempi]
A5: Ble Domenico | B5: MM70 | C5: 800 | D5: 00:02:35.200 | E5: =ROUND(D5,8) -> 00:02:35.200 | F5: =CONCATENATE(B5,E5) -> MM700,0017963 | G5: =VLOOKUP(F5,Tempi!D$2:E$5894,2,FALSE) -> 840 | H5: 840
A6: Buffo Orlando | B6: MM40 | C6: 800 | D6: 00:02:30 | E6: 00:02:30 | F6: MM400,00173611 | G6: =VLOOKUP(F6,Tempi!D$2:E$5894,2,FALSE) -> 259 | H6: 259
A7: Cervellera Davide | B7: MM55 | C7: 800 | D7: 00:02:39.500 | E7: 00:02:39.500 | F7: MM550,00184606 | G7: =VLOOKUP(F7,Tempi!D$2:E$5894,2,FALSE) -> 413 | H7: 413
A8: Colafati Antonello | B8: MM65 | C8: 800 | D8: 00:03:35.600 | E8: 00:03:35.600 | F8: MM650,00249537 | G8: =VLOOKUP(F8,Tempi!D$2:E$5894,2,FALSE) ->  | H8: 31 | I8: il punteggio dovrebbe essere 31 [riga 5041 del foglio "Tempi]
A9: Donnaloia Sante | B9: MM35 | C9: 800 | D9: 00:02:17.900 | E9: 00:02:17.900 | F9: MM350,00159606 | G9: =VLOOKUP(F9,Tempi!D$2:E$5894,2,FALSE) -> 336 | H9: 336
A10: Francavilla Stefano | B10: MM35 | C10: 800 | D10: 00:02:19.900 | E10: 00:02:19.900 | F10: MM350,00161921 | G10: =VLOOKUP(F10,Tempi!D$2:E$5894,2,FALSE) -> 304 | H10: 304
A11: Greco Vincenzo | B11: MM45 | C11: 800 | D11: 00:02:38.300 | E11: 00:02:38.300 | F11: MM450,00183218 | G11: =VLOOKUP(F11,Tempi!D$2:E$5894,2,FALSE) -> 242 | H11: 242
A12: Lagatta Matteo | B12: MM55 | C12: 800 | D12: 00:02:27.900 | E12: 00:02:27.900 | F12: MM550,00171181 | G12: =VLOOKUP(F12,Tempi!D$2:E$5894,2,FALSE) -> 605 | H12: 605
A13: Leo Teodoro | B13: MM45 | C13: 800 | D13: 00:02:35.200 | E13: 00:02:35.200 | F13: MM450,0017963 | G13: =VLOOKUP(F13,Tempi!D$2:E$5894,2,FALSE) -> 283 | H13: 283

Sheet Tempi
A1: distanza | B1: categoria | C1: tempo | D1: concatena | E1: punteggio
A2: 800 | B2: MM35 | C2: 00:01:41.400 | D2: =CONCATENATE(B2,C2) -> MM350,00117361 | E2: 1299
A3: 800 | B3: MM35 | C3: 00:01:41.500 | D3: =CONCATENATE(B3,C3) -> MM350,00117477 | E3: 1292
A4: 800 | B4: MM35 | C4: 00:01:41.600 | D4: MM350,00117593 | E4: 1285
A5: 800 | B5: MM35 | C5: 00:01:41.700 | D5: MM350,00117708 | E5: 1278
A6: 800 | B6: MM35 | C6: 00:01:41.800 | D6: MM350,00117824 | E6: 1272
A7: 800 | B7: MM35 | C7: 00:01:41.900 | D7: MM350,0011794 | E7: 1265
A8: 800 | B8: MM35 | C8: 00:01:42 | D8: MM350,00118056 | E8: 1258
A9: 800 | B9: MM35 | C9: 00:01:42.100 | D9: MM350,00118171 | E9: 1252
A10: 800 | B10: MM35 | C10: 00:01:42.200 | D10: MM350,00118287 | E10: 1245
A11: 800 | B11: MM35 | C11: 00:01:42.300 | D11: MM350,00118403 | E11: 1239
A12: 800 | B12: MM35 | C12: 00:01:42.400 | D12: MM350,00118519 | E12: 1233
A13: 800 | B13: MM35 | C13: 00:01:42.500 | D13: MM350,00118634 | E13: 1227
A14: 800 | B14: MM35 | C14: 00:01:42.600 | D14: MM350,0011875 | E14: 1220
A15: 800 | B15: MM35 | C15: 00:01:42.700 | D15: MM350,00118866 | E15: 1214
A16: 800 | B16: MM35 | C16: 00:01:42.800 | D16: MM350,00118981 | E16: 1208
A17: 800 | B17: MM35 | C17: 00:01:42.900 | D17: MM350,00119097 | E17: 1202
A18: 800 | B18: MM35 | C18: 00:01:43 | D18: MM350,00119213 | E18: 1196
A19: 800 | B19: MM35 | C19: 00:01:43.100 | D19: MM350,00119329 | E19: 1191
A20: 800 | B20: MM35 | C20: 00:01:43.200 | D20: MM350,00119444 | E20: 1185
A21: 800 | B21: MM35 | C21: 00:01:43.300 | D21: MM350,0011956 | E21: 1179
A22: 800 | B22: MM35 | C22: 00:01:43.400 | D22: MM350,00119676 | E22: 1174
A23: 800 | B23: MM35 | C23: 00:01:43.500 | D23: MM350,00119792 | E23: 1169
A24: 800 | B24: MM35 | C24: 00:01:43.600 | D24: MM350,00119907 | E24: 1163
A25: 800 | B25: MM35 | C25: 00:01:43.700 | D25: MM350,00120023 | E25: 1158
A26: 800 | B26: MM35 | C26: 00:01:43.800 | D26: MM350,00120139 | E26: 1153
A27: 800 | B27: MM35 | C27: 00:01:43.900 | D27: MM350,00120255 | E27: 1147
A28: 800 | B28: MM35 | C28: 00:01:44 | D28: MM350,0012037 | E28: 1142
A29: 800 | B29: MM35 | C29: 00:01:44.100 | D29: MM350,00120486 | E29: 1137
A30: 800 | B30: MM35 | C30: 00:01:44.200 | D30: MM350,00120602 | E30: 1132
A31: 800 | B31: MM35 | C31: 00:01:44.300 | D31: MM350,00120718 | E31: 1127
A32: 800 | B32: MM35 | C32: 00:01:44.400 | D32: MM350,00120833 | E32: 1122
A33: 800 | B33: MM35 | C33: 00:01:44.500 | D33: MM350,00120949 | E33: 1117
A34: 800 | B34: MM35 | C34: 00:01:44.600 | D34: MM350,00121065 | E34: 1113
A35: 800 | B35: MM35 | C35: 00:01:44.700 | D35: MM350,00121181 | E35: 1108
A36: 800 | B36: MM35 | C36: 00:01:44.800 | D36: MM350,00121296 | E36: 1103
A37: 800 | B37: MM35 | C37: 00:01:44.900 | D37: MM350,00121412 | E37: 1099
A38: 800 | B38: MM35 | C38: 00:01:45 | D38: MM350,00121528 | E38: 1094
A39: 800 | B39: MM35 | C39: 00:01:45.100 | D39: MM350,00121644 | E39: 1090
A40: 800 | B40: MM35 | C40: 00:01:45.200 | D40: MM350,00121759 | E40: 1085
A41: 800 | B41: MM35 | C41: 00:01:45.300 | D41: MM350,00121875 | E41: 1081
A42: 800 | B42: MM35 | C42: 00:01:45.400 | D42: MM350,00121991 | E42: 1077
A43: 800 | B43: MM35 | C43: 00:01:45.500 | D43: MM350,00122106 | E43: 1073
A44: 800 | B44: MM35 | C44: 00:01:45.600 | D44: MM350,00122222 | E44: 1069
A45: 800 | B45: MM35 | C45: 00:01:45.700 | D45: MM350,00122338 | E45: 1065
A46: 800 | B46: MM35 | C46: 00:01:45.800 | D46: MM350,00122454 | E46: 1061
A47: 800 | B47: MM35 | C47: 00:01:45.900 | D47: MM350,00122569 | E47: 1057
A48: 800 | B48: MM35 | C48: 00:01:46 | D48: MM350,00122685 | E48: 1053
A49: 800 | B49: MM35 | C49: 00:01:46.100 | D49: MM350,00122801 | E49: 1049
A50: 800 | B50: MM35 | C50: 00:01:46.200 | D50: MM350,00122917 | E50: 1046
A51: 800 | B51: MM35 | C51: 00:01:46.300 | D51: MM350,00123032 | E51: 1042
A52: 800 | B52: MM35 | C52: 00:01:46.400 | D52: MM350,00123148 | E52: 1038
A53: 800 | B53: MM35 | C53: 00:01:46.500 | D53: MM350,00123264 | E53: 1035
A54: 800 | B54: MM35 | C54: 00:01:46.600 | D54: MM350,0012338 | E54: 1031
A55: 800 | B55: MM35 | C55: 00:01:46.700 | D55: MM350,00123495 | E55: 1028
A56: 800 | B56: MM35 | C56: 00:01:46.800 | D56: MM350,00123611 | E56: 1025
A57: 800 | B57: MM35 | C57: 00:01:46.900 | D57: MM350,00123727 | E57: 1022
A58: 800 | B58: MM35 | C58: 00:01:47 | D58: MM350,00123843 | E58: 1019
A59: 800 | B59: MM35 | C59: 00:01:47.100 | D59: MM350,00123958 | E59: 1015
A60: 800 | B60: MM35 | C60: 00:01:47.200 | D60: MM350,00124074 | E60: 1012
A61: 800 | B61: MM35 | C61: 00:01:47.300 | D61: MM350,0012419 | E61: 1009
A62: 800 | B62: MM35 | C62: 00:01:47.400 | D62: MM350,00124306 | E62: 1006
A63: 800 | B63: MM35 | C63: 00:01:47.500 | D63: MM350,00124421 | E63: 1003
A64: 800 | B64: MM35 | C64: 00:01:47.600 | D64: MM350,00124537 | E64: 1001
A65: 800 | B65: MM35 | C65: 00:01:47.700 | D65: MM350,00124653 | E65: 998
A66: 800 | B66: MM35 | C66: 00:01:47.800 | D66: MM350,00124769 | E66: 995
A67: 800 | B67: MM35 | C67: 00:01:47.900 | D67: =CONCATENATE(B67,C67) -> MM350,00124884 | E67: 992
A68: 800 | B68: MM35 | C68: 00:01:48 | D68: MM350,00125 | E68: 990
A69: 800 | B69: MM35 | C69: 00:01:48.100 | D69: MM350,00125116 | E69: 987
A70: 800 | B70: MM35 | C70: 00:01:48.200 | D70: MM350,00125231 | E70: 984
A71: 800 | B71: MM35 | C71: 00:01:48.300 | D71: MM350,00125347 | E71: 981
A72: 800 | B72: MM35 | C72: 00:01:48.400 | D72: MM350,00125463 | E72: 978
A73: 800 | B73: MM35 | C73: 00:01:48.500 | D73: MM350,00125579 | E73: 976
A74: 800 | B74: MM35 | C74: 00:01:48.600 | D74: MM350,00125694 | E74: 973
A75: 800 | B75: MM35 | C75: 00:01:48.700 | D75: MM350,0012581 | E75: 970
A76: 800 | B76: MM35 | C76: 00:01:48.800 | D76: MM350,00125926 | E76: 967
A77: 800 | B77: MM35 | C77: 00:01:48.900 | D77: MM350,00126042 | E77: 965
A78: 800 | B78: MM35 | C78: 00:01:49 | D78: MM350,00126157 | E78: 962
A79: 800 | B79: MM35 | C79: 00:01:49.100 | D79: MM350,00126273 | E79: 959
A80: 800 | B80: MM35 | C80: 00:01:49.200 | D80: MM350,00126389 | E80: 957
A81: 800 | B81: MM35 | C81: 00:01:49.300 | D81: MM350,00126505 | E81: 954
A82: 800 | B82: MM35 | C82: 00:01:49.400 | D82: MM350,0012662 | E82: 951
A83: 800 | B83: MM35 | C83: 00:01:49.500 | D83: MM350,00126736 | E83: 948
A84: 800 | B84: MM35 | C84: 00:01:49.600 | D84: MM350,00126852 | E84: 946
A85: 800 | B85: MM35 | C85: 00:01:49.700 | D85: MM350,00126968 | E85: 943
A86: 800 | B86: MM35 | C86: 00:01:49.800 | D86: MM350,00127083 | E86: 940
A87: 800 | B87: MM35 | C87: 00:01:49.900 | D87: MM350,00127199 | E87: 938
A88: 800 | B88: MM35 | C88: 00:01:50 | D88: MM350,00127315 | E88: 935
A89: 800 | B89: MM35 | C89: 00:01:50.100 | D89: MM350,00127431 | E89: 932
A90: 800 | B90: MM35 | C90: 00:01:50.200 | D90: MM350,00127546 | E90: 930
A91: 800 | B91: MM35 | C91: 00:01:50.300 | D91: MM350,00127662 | E91: 927
A92: 800 | B92: MM35 | C92: 00:01:50.400 | D92: MM350,00127778 | E92: 924
A93: 800 | B93: MM35 | C93: 00:01:50.500 | D93: MM350,00127894 | E93: 922
A94: 800 | B94: MM35 | C94: 00:01:50.600 | D94: MM350,00128009 | E94: 919
A95: 800 | B95: MM35 | C95: 00:01:50.700 | D95: MM350,00128125 | E95: 916
A96: 800 | B96: MM35 | C96: 00:01:50.800 | D96: MM350,00128241 | E96: 914
A97: 800 | B97: MM35 | C97: 00:01:50.900 | D97: MM350,00128356 | E97: 911
A98: 800 | B98: MM35 | C98: 00:01:51 | D98: MM350,00128472 | E98: 908
A99: 800 | B99: MM35 | C99: 00:01:51.100 | D99: MM350,00128588 | E99: 906
A100: 800 | B100: MM35 | C100: 00:01:51.200 | D100: MM350,00128704 | E100: 903
A101: 800 | B101: MM35 | C101: 00:01:51.300 | D101: MM350,00128819 | E101: 901
A102: 800 | B102: MM35 | C102: 00:01:51.400 | D102: MM350,00128935 | E102: 898
A103: 800 | B103: MM35 | C103: 00:01:51.500 | D103: MM350,00129051 | E103: 895
A104: 800 | B104: MM35 | C104: 00:01:51.600 | D104: MM350,00129167 | E104: 893
A105: 800 | B105: MM35 | C105: 00:01:51.700 | D105: MM350,00129282 | E105: 890
A106: 800 | B106: MM35 | C106: 00:01:51.800 | D106: MM350,00129398 | E106: 887
A107: 800 | B107: MM35 | C107: 00:01:51.900 | D107: MM350,00129514 | E107: 885
A108: 800 | B108: MM35 | C108: 00:01:52 | D108: MM350,0012963 | E108: 882
A109: 800 | B109: MM35 | C109: 00:01:52.100 | D109: MM350,00129745 | E109: 880
A110: 800 | B110: MM35 | C110: 00:01:52.200 | D110: MM350,00129861 | E110: 877
A111: 800 | B111: MM35 | C111: 00:01:52.300 | D111: MM350,00129977 | E111: 874
A112: 800 | B112: MM35 | C112: 00:01:52.400 | D112: MM350,00130093 | E112: 872
A113: 800 | B113: MM35 | C113: 00:01:52.500 | D113: MM350,00130208 | E113: 869
A114: 800 | B114: MM35 | C114: 00:01:52.600 | D114: MM350,00130324 | E114: 867
A115: 800 | B115: MM35 | C115: 00:01:52.700 | D115: MM350,0013044 | E115: 864
A116: 800 | B116: MM35 | C116: 00:01:52.800 | D116: MM350,00130556 | E116: 861
A117: 800 | B117: MM35 | C117: 00:01:52.900 | D117: MM350,00130671 | E117: 859
A118: 800 | B118: MM35 | C118: 00:01:53 | D118: MM350,00130787 | E118: 856
A119: 800 | B119: MM35 | C119: 00:01:53.100 | D119: MM350,00130903 | E119: 854
A120: 800 | B120: MM35 | C120: 00:01:53.200 | D120: MM350,00131019 | E120: 851
A121: 800 | B121: MM35 | C121: 00:01:53.300 | D121: MM350,00131134 | E121: 849
A122: 800 | B122: MM35 | C122: 00:01:53.400 | D122: MM350,0013125 | E122: 846
A123: 800 | B123: MM35 | C123: 00:01:53.500 | D123: MM350,00131366 | E123: 843
A124: 800 | B124: MM35 | C124: 00:01:53.600 | D124: MM350,00131481 | E124: 841
A125: 800 | B125: MM35 | C125: 00:01:53.700 | D125: MM350,00131597 | E125: 838
A126: 800 | B126: MM35 | C126: 00:01:53.800 | D126: MM350,00131713 | E126: 836
A127: 800 | B127: MM35 | C127: 00:01:53.900 | D127: MM350,00131829 | E127: 833
A128: 800 | B128: MM35 | C128: 00:01:54 | D128: MM350,00131944 | E128: 831
A129: 800 | B129: MM35 | C129: 00:01:54.100 | D129: MM350,0013206 | E129: 828
A130: 800 | B130: MM35 | C130: 00:01:54.200 | D130: MM350,00132176 | E130: 826
A131: 800 | B131: MM35 | C131: 00:01:54.300 | D131: =CONCATENATE(B131,C131) -> MM350,00132292 | E131: 823
A132: 800 | B132: MM35 | C132: 00:01:54.400 | D132: MM350,00132407 | E132: 821
A133: 800 | B133: MM35 | C133: 00:01:54.500 | D133: MM350,00132523 | E133: 818
A134: 800 | B134: MM35 | C134: 00:01:54.600 | D134: MM350,00132639 | E134: 816
A135: 800 | B135: MM35 | C135: 00:01:54.700 | D135: MM350,00132755 | E135: 813
A136: 800 | B136: MM35 | C136: 00:01:54.800 | D136: MM350,0013287 | E136: 811
A137: 800 | B137: MM35 | C137: 00:01:54.900 | D137: MM350,00132986 | E137: 808
A138: 800 | B138: MM35 | C138: 00:01:55 | D138: MM350,00133102 | E138: 806
A139: 800 | B139: MM35 | C139: 00:01:55.100 | D139: MM350,00133218 | E139: 803
A140: 800 | B140: MM35 | C140: 00:01:55.200 | D140: MM350,00133333 | E140: 801
A141: 800 | B141: MM35 | C141: 00:01:55.300 | D141: MM350,00133449 | E141: 798
A142: 800 | B142: MM35 | C142: 00:01:55.400 | D142: MM350,00133565 | E142: 796
A143: 800 | B143: MM35 | C143: 00:01:55.500 | D143: MM350,00133681 | E143: 793
A144: 800 | B144: MM35 | C144: 00:01:55.600 | D144: MM350,00133796 | E144: 791
A145: 800 | B145: MM35 | C145: 00:01:55.700 | D145: MM350,00133912 | E145: 788
A146: 800 | B146: MM35 | C146: 00:01:55.800 | D146: MM350,00134028 | E146: 786
A147: 800 | B147: MM35 | C147: 00:01:55.900 | D147: MM350,00134144 | E147: 783
A148: 800 | B148: MM35 | C148: 00:01:56 | D148: MM350,00134259 | E148: 781
A149: 800 | B149: MM35 | C149: 00:01:56.100 | D149: MM350,00134375 | E149: 778
A150: 800 | B150: MM35 | C150: 00:01:56.200 | D150: MM350,00134491 | E150: 776
A151: 800 | B151: MM35 | C151: 00:01:56.300 | D151: MM350,00134606 | E151: 774
A152: 800 | B152: MM35 | C152: 00:01:56.400 | D152: MM350,00134722 | E152: 771
A153: 800 | B153: MM35 | C153: 00:01:56.500 | D153: MM350,00134838 | E153: 769
A154: 800 | B154: MM35 | C154: 00:01:56.600 | D154: MM350,00134954 | E154: 766
A155: 800 | B155: MM35 | C155: 00:01:56.700 | D155: MM350,00135069 | E155: 764
A156: 800 | B156: MM35 | C156: 00:01:56.800 | D156: MM350,00135185 | E156: 761
A157: 800 | B157: MM35 | C157: 00:01:56.900 | D157: MM350,00135301 | E157: 759
A158: 800 | B158: MM35 | C158: 00:01:57 | D158: MM350,00135417 | E158: 757
A159: 800 | B159: MM35 | C159: 00:01:57.100 | D159: MM350,00135532 | E159: 754
A160: 800 | B160: MM35 | C160: 00:01:57.200 | D160: MM350,00135648 | E160: 752
A161: 800 | B161: MM35 | C161: 00:01:57.300 | D161: MM350,00135764 | E161: 750
A162: 800 | B162: MM35 | C162: 00:01:57.400 | D162: MM350,0013588 | E162: 747
A163: 800 | B163: MM35 | C163: 00:01:57.500 | D163: MM350,00135995 | E163: 745
A164: 800 | B164: MM35 | C164: 00:01:57.600 | D164: MM350,00136111 | E164: 742
A165: 800 | B165: MM35 | C165: 00:01:57.700 | D165: MM350,00136227 | E165: 740
A166: 800 | B166: MM35 | C166: 00:01:57.800 | D166: MM350,00136343 | E166: 738
A167: 800 | B167: MM35 | C167: 00:01:57.900 | D167: MM350,00136458 | E167: 735
A168: 800 | B168: MM35 | C168: 00:01:58 | D168: MM350,00136574 | E168: 733
A169: 800 | B169: MM35 | C169: 00:01:58.100 | D169: MM350,0013669 | E169: 730
A170: 800 | B170: MM35 | C170: 00:01:58.200 | D170: MM350,00136806 | E170: 728
A171: 800 | B171: MM35 | C171: 00:01:58.300 | D171: MM350,00136921 | E171: 726
A172: 800 | B172: MM35 | C172: 00:01:58.400 | D172: MM350,00137037 | E172: 723
A173: 800 | B173: MM35 | C173: 00:01:58.500 | D173: MM350,00137153 | E173: 721
A174: 800 | B174: MM35 | C174: 00:01:58.600 | D174: MM350,00137269 | E174: 719
A175: 800 | B175: MM35 | C175: 00:01:58.700 | D175: MM350,00137384 | E175: 716
A176: 800 | B176: MM35 | C176: 00:01:58.800 | D176: MM350,001375 | E176: 714
A177: 800 | B177: MM35 | C177: 00:01:58.900 | D177: MM350,00137616 | E177: 711
A178: 800 | B178: MM35 | C178: 00:01:59 | D178: MM350,00137731 | E178: 709
A179: 800 | B179: MM35 | C179: 00:01:59.100 | D179: MM350,00137847 | E179: 707
A180: 800 | B180: MM35 | C180: 00:01:59.200 | D180: MM350,00137963 | E180: 704
A181: 800 | B181: MM35 | C181: 00:01:59.300 | D181: MM350,00138079 | E181: 702
A182: 800 | B182: MM35 | C182: 00:01:59.400 | D182: MM350,00138194 | E182: 700
A183: 800 | B183: MM35 | C183: 00:01:59.500 | D183: MM350,0013831 | E183: 697
A184: 800 | B184: MM35 | C184: 00:01:59.600 | D184: MM350,00138426 | E184: 695
A185: 800 | B185: MM35 | C185: 00:01:59.700 | D185: MM350,00138542 | E185: 693
A186: 800 | B186: MM35 | C186: 00:01:59.800 | D186: MM350,00138657 | E186: 690
A187: 800 | B187: MM35 | C187: 00:01:59.900 | D187: MM350,00138773 | E187: 688
A188: 800 | B188: MM35 | C188: 00:02:00 | D188: MM350,00138889 | E188: 686
A189: 800 | B189: MM35 | C189: 00:02:00.100 | D189: MM350,00139005 | E189: 684
A190: 800 | B190: MM35 | C190: 00:02:00.200 | D190: MM350,0013912 | E190: 681
A191: 800 | B191: MM35 | C191: 00:02:00.300 | D191: MM350,00139236 | E191: 679
A192: 800 | B192: MM35 | C192: 00:02:00.400 | D192: MM350,00139352 | E192: 677
A193: 800 | B193: MM35 | C193: 00:02:00.500 | D193: MM350,00139468 | E193: 674
A194: 800 | B194: MM35 | C194: 00:02:00.600 | D194: MM350,00139583 | E194: 672
A195: 800 | B195: MM35 | C195: 00:02:00.700 | D195: =CONCATENATE(B195,C195) -> MM350,00139699 | E195: 670
A196: 800 | B196: MM35 | C196: 00:02:00.800 | D196: MM350,00139815 | E196: 668
A197: 800 | B197: MM35 | C197: 00:02:00.900 | D197: MM350,00139931 | E197: 666
A198: 800 | B198: MM35 | C198: 00:02:01 | D198: MM350,00140046 | E198: 663
A199: 800 | B199: MM35 | C199: 00:02:01.100 | D199: MM350,00140162 | E199: 661
A200: 800 | B200: MM35 | C200: 00:02:01.200 | D200: MM350,00140278 | E200: 659
... 5694 more rows
